[Event "FIDE WCCC Open-08 2024"]
[Site "Montesilvano"]
[Date "2024.11.23"]
[Round "8.18"]
[White "Nguyen Phuc Cao Danh"]
[Black "Lan, Kai Zhou"]
[Result "1-0"]
[ECO "B48"]
[WhiteElo "1627"]
[BlackElo "1784"]
[Annotator "NA RC"]
[PlyCount "159"]
[EventDate "2024.11.18"]
[EventType "swiss"]
[EventCountry "ITA"]
[SourceTitle "playchess.com"]
[Source "ChessBase"]
[SourceQuality "1"]
[TimeControl "5400+30"]

1. e4 {[%emt 0:00:41]} c5 {[%emt 0:00:35]} 2. Nf3 {[%emt 0:00:03]} e6 {[%emt 0:00:40]} 3. d4 {[%emt 0:00:18]} cxd4 {[%emt 0:00:07]} 4. Nxd4 {[%emt 0:00:10]} Nc6 {[%emt 0:00:06]} 5. Be2 {[%emt 0:01:48]} Qc7 {[%emt 0:02:11]} 6. Nb5 {[%emt 0:00:56]} Qb8 {[%emt 0:00:58]} 7. O-O {[%emt 0:00:31]} a6 {[%emt 0:01:43]} 8. Nd4 {[%emt 0:00:15]} Nf6 {[%emt 0:02:33]} 9. Nc3 {[%emt 0:00:52]} b5 {[%emt 0:02:05]} 10. a3 {[%emt 0:01:18]} Bb7 {[%emt 0:02:14]} 11. Be3 {[%emt 0:02:48]} Qc7 {[%emt 0:05:56]} 12. Kh1 {[%emt 0:01:29]} Ne5 {[%emt 0:01:10]} 13. f4 {[%emt 0:01:41]} Nc4 {[%emt 0:00:19]} 14. Bxc4 {[%emt 0:00:11]} Qxc4 {[%emt 0:00:23]} 15. Qd3 {[%emt 0:00:45]} Nxe4 {[%emt 0:05:10]} 16. Nxe4 {[%emt 0:00:46]} Qd5 {[%emt 0:01:01]} 17. Nxb5 {[%emt 0:00:46]} axb5 {[%emt 0:02:05]} 18. Qxd5 {[%emt 0:00:11]} Bxd5 {[%emt 0:00:19]} 19. Nc3 {[%emt 0:00:58]} Bc6 {[%emt 0:01:07]} 20. Ne2 {[%emt 0:01:34]} Rc8 {[%emt 0:02:40]} 21. c3 {[%emt 0:02:41]} Bd6 {[%emt 0:03:25]} 22. Rfd1 {[%emt 0:00:42]} Bd5 {[%emt 0:00:59]} 23. Nd4 {[%emt 0:00:18]} Bc5 {[%emt 0:02:56]} 24. Nf5 {[%emt 0:05:30]} Bxe3 {[%emt 0:03:30]} 25. Nxe3 {[%emt 0:00:09]} Bb3 {[%emt 0:00:10]} 26. Rd4 {[%emt 0:00:11]} Ke7 {[%emt 0:02:21]} 27. Rb4 {[%emt 0:00:22]} Ba4 {[%emt 0:01:10]} 28. Re1 {[%emt 0:01:07]} Rc5 {[%emt 0:01:40]} 29. b3 {[%emt 0:00:19]} Kd6 {[%emt 0:00:35]} 30. bxa4 {[%emt 0:00:14]} bxa4 {[%emt 0:00:09]} 31. c4 {[%emt 0:00:30]} Ra8 {[%emt 0:00:14]} 32. Rd1+ {[%emt 0:00:23]} Kc7 {[%emt 0:01:29]} 33. Rdb1 {[%emt 0:00:13]} Ra7 {[%emt 0:00:08]} 34. Rb5 {[%emt 0:00:29]} Kc6 {[%emt 0:01:22]} 35. Rb6+ {[%emt 0:00:22]} Kc7 {[%emt 0:00:09]} 36. R1b5 {[%emt 0:00:13]} Rxb5 {[%emt 0:06:59]} 37. Rxb5 {[%emt 0:00:11]} Kc6 {[%emt 0:00:07]} 38. Nc2 {[%emt 0:00:33]} Rb7 {[%emt 0:03:06]} 39. Nb4+ {[%emt 0:00:22]} Kc7 {[%emt 0:00:30]} 40. Na6+ {[%emt 0:00:07]} Kc6 {[%emt 0:00:12]} 41. Rxb7 {[%emt 0:00:07]} Kxb7 {[%emt 0:00:13]} 42. Nc5+ {[%emt 0:00:07]} Kc6 {[%emt 0:00:10]} 43. Nxa4 {[%emt 0:00:09]} d5 {[%emt 0:00:32]} 44. Nb2 {[%emt 0:02:02]} Kc5 {[%emt 0:00:29]} 45. cxd5 {[%emt 0:00:22]} Kxd5 {[%emt 0:00:37]} 46. a4 {[%emt 0:00:41]} f6 {[%emt 0:00:16]} 47. Kg1 {[%emt 0:00:29]} h5 {[%emt 0:00:07]} 48. Kf2 {[%emt 0:00:11]} g6 {[%emt 0:00:26]} 49. h4 {[%emt 0:00:30]} Kc5 {[%emt 0:00:16]} 50. a5 {[%emt 0:00:35]} Kb5 {[%emt 0:00:09]} 51. Nd3 {[%emt 0:00:16]} Kxa5 {[%emt 0:00:30]} 52. Nc5 {[%emt 0:00:09]} Kb5 {[%emt 0:00:49]} 53. Nxe6 {[%emt 0:00:16]} f5 {[%emt 0:00:19]} 54. Nf8 {[%emt 0:00:07]} Kc6 {[%emt 0:00:17]} 55. Nxg6 {[%emt 0:00:09]} Kd6 {[%emt 0:00:09]} 56. Ke3 {[%emt 0:00:10]} Ke6 {[%emt 0:00:08]} 57. Kd4 {[%emt 0:00:21]} Kf6 {[%emt 0:00:14]} 58. Kd5 {[%emt 0:00:11]} Kxg6 {[%emt 0:00:11]} 59. Ke6 {[%emt 0:00:07]} Kh6 {[%emt 0:00:07]} 60. Kxf5 {[%emt 0:00:11]} Kg7 {[%emt 0:00:04]} 61. Kg5 {[%emt 0:00:29]} Kf7 {[%emt 0:00:09]} 62. Kxh5 {[%emt 0:00:54]} Kg7 {[%emt 0:00:16]} 63. f5 {[%emt 0:00:09]} Kf7 {[%emt 0:00:16]} 64. Kh6 {[%emt 0:00:12]} Kg8 {[%emt 0:00:02]} 65. g4 {[%emt 0:00:13]} Kh8 {[%emt 0:00:10]} 66. Kg6 {[%emt 0:00:14]} Kg8 {[%emt 0:00:04]} 67. f6 {[%emt 0:00:09]} Kh8 {[%emt 0:00:14]} 68. h5 {[%emt 0:00:17]} Kg8 {[%emt 0:00:06]} 69. h6 {[%emt 0:00:09]} Kh8 {[%emt 0:00:10]} 70. Kf7 {[%emt 0:00:22]} Kh7 {[%emt 0:00:08]} 71. g5 {[%emt 0:00:08]} Kh8 {[%emt 0:00:04]} 72. h7 {[%emt 0:00:09]} Kxh7 {[%emt 0:00:06]} 73. g6+ {[%emt 0:00:13]} Kh6 {[%emt 0:00:08]} 74. g7 {[%emt 0:00:05]} Kg5 {[%emt 0:00:06]} 75. g8=Q+ {[%emt 1:24:10]} Kf5 {[%emt 0:00:02]} 76. Ke7 {[%emt 0:00:00]} Ke5 {[%emt 0:00:07]} 77. f7 {[%emt 0:00:00]} Kd5 {[%emt 0:00:05]} 78. f8=Q+ {[%emt 0:01:30]} Ke4 {[%emt 0:00:06]} 79. Qc4+ {[%emt 0:00:00]} Ke3 {[%emt 0:00:05]} 80. Qff4# {[%emt 0:00:00]} 1-0

[Event "FIDE WCCC Open-08 2024"]
[Site "Montesilvano"]
[Date "2024.11.23"]
[Round "8.19"]
[White "Singh, Ian Avery"]
[Black "Zhanabayev, Arystan"]
[Result "1-0"]
[ECO "B38"]
[WhiteElo "1713"]
[BlackElo "1524"]
[Annotator "NA RC"]
[PlyCount "115"]
[EventDate "2024.11.18"]
[EventType "swiss"]
[EventCountry "ITA"]
[SourceTitle "playchess.com"]
[Source "ChessBase"]
[SourceQuality "1"]
[TimeControl "5400+30"]

1. e4 {[%emt 0:00:01]} c5 {[%emt 0:00:05]} 2. Nf3 {[%emt 0:00:05]} Nc6 {[%emt 0:00:05]} 3. d4 {[%emt 0:00:05]} cxd4 {[%emt 0:00:05]} 4. Nxd4 {[%emt 0:00:04]} g6 {[%emt 0:00:07]} 5. c4 {[%emt 0:00:08]} Bg7 {[%emt 0:00:03]} 6. Be3 {[%emt 0:00:12]} Qb6 {[%emt 1:33:05]} 7. Nb5 {[%emt 0:08:59]} Qa5+ {[%emt 0:00:00]} 8. Bd2 {[%emt 0:02:13]} Qd8 {[%emt 0:01:00]} 9. N1c3 {[%emt 0:04:49]} Nf6 {[%emt 0:00:00]} 10. Be2 {[%emt 0:01:49]} O-O {[%emt 0:00:00]} 11. O-O {[%emt 0:00:11]} a6 {[%emt 0:00:00]} 12. Na3 {[%emt 0:00:09]} d6 {[%emt 0:00:00]} 13. Be3 {[%emt 0:04:01]} Be6 {[%emt 0:00:00]} 14. f3 {[%emt 0:02:42]} Rc8 {[%emt 0:00:00]} 15. Rc1 {[%emt 0:02:27]} Ne5 {[%emt 0:00:00]} 16. b3 {[%emt 0:01:14]} Qa5 {[%emt 0:00:00]} 17. Qd2 {[%emt 0:08:41]} Nc6 {[%emt 0:04:30]} 18. Nc2 {[%emt 0:12:05]} Nh5 {[%emt 0:00:00]} 19. b4 {[%emt 0:14:52]} Qd8 {[%emt 0:00:00]} 20. Nd5 {[%emt 0:06:59]} Ne5 {[%emt 0:00:00]} 21. Nd4 {[%emt 0:05:52]} Bd7 {[%emt 0:00:00]} 22. Nb3 {[%emt 0:01:43]} Nf6 {[%emt 0:02:30]} 23. Bb6 {[%emt 0:07:00]} Qe8 {[%emt 0:00:00]} 24. Na5 {[%emt 0:01:16]} Bc6 {[%emt 0:00:00]} 25. b5 {[%emt 0:05:47]} Bxd5 {[%emt 0:01:30]} 26. exd5 {[%emt 0:00:35]} Ned7 {[%emt 0:00:00]} 27. Be3 {[%emt 0:00:34]} b6 {[%emt 0:00:00]} 28. Nc6 {[%emt 0:00:36]} axb5 {[%emt 0:00:00]} 29. cxb5 {[%emt 0:00:23]} Nc5 {[%emt 0:00:00]} 30. Rfe1 {[%emt 0:00:48]} Qd7 {[%emt 0:00:00]} 31. Bf1 {[%emt 0:00:45]} Rfe8 {[%emt 0:00:00]} 32. Rcd1 {[%emt 0:03:48]} Rc7 {[%emt 0:00:00]} 33. Bxc5 {[%emt 0:00:58]} dxc5 {[%emt 0:00:00]} 34. Ne5 {[%emt 0:00:46]} Qd8 {[%emt 0:00:00]} 35. Bc4 {[%emt 0:01:43]} Qd6 {[%emt 0:00:59]} 36. Qc1 {[%emt 0:01:30]} Nd7 {[%emt 0:00:57]} 37. Nxf7 {[%emt 0:01:10]} Kxf7 {[%emt 0:00:53]} 38. Re6 {[%emt 0:00:01]} Bd4+ {[%emt 0:02:10]} 39. Kh1 {[%emt 0:00:02]} Qe5 {[%emt 0:00:44]} 40. Rxe5 {[%emt 0:00:18]} Nxe5 {[%emt 0:00:05]} 41. d6+ {[%emt 0:00:07]} Nxc4 {[%emt 0:00:48]} 42. Qxc4+ {[%emt 0:00:05]} e6 {[%emt 0:00:29]} 43. dxc7 {[%emt 0:00:42]} Ke7 {[%emt 0:00:34]} 44. Rxd4 {[%emt 0:00:08]} cxd4 {[%emt 0:00:46]} 45. c8=Q {[%emt 0:00:06]} Rxc8 {[%emt 0:00:12]} 46. Qxc8 {[%emt 0:00:05]} Kd6 {[%emt 0:00:11]} 47. Qc6+ {[%emt 0:00:08]} Ke5 {[%emt 0:00:05]} 48. Qxb6 {[%emt 0:00:04]} d3 {[%emt 0:00:13]} 49. Qe3+ {[%emt 0:00:06]} Kd5 {[%emt 0:00:20]} 50. Qxd3+ {[%emt 0:00:06]} Kc5 {[%emt 0:00:06]} 51. a4 {[%emt 0:00:14]} Kb6 {[%emt 0:00:10]} 52. Qd4+ {[%emt 0:00:07]} Ka5 {[%emt 0:00:18]} 53. Qd8+ {[%emt 0:00:16]} Kb4 {[%emt 0:00:08]} 54. b6 {[%emt 0:00:21]} Ka3 {[%emt 0:00:21]} 55. b7 {[%emt 0:00:08]} Ka2 {[%emt 0:00:04]} 56. b8=Q {[%emt 0:00:07]} Ka1 {[%emt 0:00:08]} 57. Qd4+ {[%emt 0:00:07]} Ka2 {[%emt 0:00:16]} 58. Qbb2# {[%emt 0:00:06]} 1-0

[Event "FIDE WCCC Open-08 2024"]
[Site "Montesilvano"]
[Date "2024.11.23"]
[Round "8.20"]
[White "Kapitanski, Furion"]
[Black "Sivan, Leeor"]
[Result "1-0"]
[ECO "C54"]
[WhiteElo "1707"]
[BlackElo "1464"]
[Annotator "NA RC"]
[PlyCount "79"]
[EventDate "2024.11.18"]
[EventType "swiss"]
[EventCountry "ITA"]
[SourceTitle "playchess.com"]
[Source "ChessBase"]
[SourceQuality "1"]
[TimeControl "5400+30"]

1. e4 {[%emt 0:00:01]} e5 {[%emt 0:00:33]} 2. Nf3 {[%emt 0:00:09]} Nc6 {[%emt 0:00:15]} 3. Bc4 {[%emt 0:00:08]} Bc5 {[%emt 0:00:19]} 4. d3 {[%emt 0:00:08]} Nf6 {[%emt 0:00:19]} 5. O-O {[%emt 0:00:11]} a6 {[%emt 0:03:25]} 6. c3 {[%emt 0:00:29]} O-O {[%emt 0:00:21]} 7. Bb3 {[%emt 0:00:07]} Ba7 {[%emt 0:04:15]} 8. Nbd2 {[%emt 0:00:34]} d6 {[%emt 0:01:34]} 9. Re1 {[%emt 0:00:31]} Ne7 {[%emt 0:07:55]} 10. Nf1 {[%emt 0:00:25]} Ng6 {[%emt 0:02:56]} 11. Ng3 {[%emt 0:00:09]} h6 {[%emt 0:02:33]} 12. d4 {[%emt 0:02:21]} Re8 {[%emt 0:04:08]} 13. Bc2 {[%emt 0:01:34]} Bg4 {[%emt 0:11:36]} 14. Be3 {[%emt 0:01:03]} Qd7 {[%emt 0:08:11]} 15. h3 {[%emt 0:03:21]} Bxf3 {[%emt 0:00:29]} 16. Qxf3 {[%emt 0:14:05]} Nh4 {[%emt 0:06:16]} 17. Qe2 {[%emt 0:01:28]} d5 {[%emt 0:01:01]} 18. dxe5 {[%emt 0:02:39]} Rxe5 {[%emt 0:01:11]} 19. Bd4 {[%emt 0:00:09]} Rg5 {[%emt 0:01:19]} 20. Bxa7 {[%emt 0:09:16]} Rxa7 {[%emt 0:00:34]} 21. exd5 {[%emt 0:08:50]} g6 {[%emt 0:05:41]} 22. Qe3 {[%emt 0:01:26]} Ra8 {[%emt 0:20:04]} 23. Qd4 {[%emt 0:02:26]} Nh5 {[%emt 0:08:25]} 24. Qxh4 {[%emt 0:00:59]} Qxd5 {[%emt 0:00:32]} 25. Ne4 {[%emt 0:02:17]} Rf5 {[%emt 0:01:00]} 26. Rad1 {[%emt 0:01:20]} Qc6 {[%emt 0:02:35]} 27. Rd8+ {[%emt 0:00:28]} Rxd8 {[%emt 0:00:09]} 28. Qxd8+ {[%emt 0:00:11]} Kg7 {[%emt 0:00:10]} 29. Ng3 {[%emt 0:02:24]} Rg5 {[%emt 0:01:13]} 30. Nxh5+ {[%emt 0:00:26]} gxh5 {[%emt 0:00:22]} 31. g3 {[%emt 0:00:56]} Qf3 {[%emt 0:00:56]} 32. Qxc7 {[%emt 0:00:30]} h4 {[%emt 0:00:26]} 33. Re3 {[%emt 0:01:04]} Qf6 {[%emt 0:01:12]} 34. Bb3 {[%emt 0:07:00]} Qg6 {[%emt 0:00:42]} 35. Bxf7 {[%emt 0:02:49]} Qb1+ {[%emt 0:01:15]} 36. Kg2 {[%emt 0:00:32]} hxg3 {[%emt 0:01:26]} 37. Bh5+ {[%emt 0:00:08]} Kh8 {[%emt 0:00:26]} 38. Re8+ {[%emt 0:00:08]} Rg8 {[%emt 0:00:32]} 39. Qe5+ {[%emt 0:00:07]} Kh7 {[%emt 0:00:17]} 40. Re7+ {[%emt 0:00:09]} 1-0

[Event "FIDE WCCC Open-08 2024"]
[Site "Montesilvano"]
[Date "2024.11.23"]
[Round "8.21"]
[White "Mudriievskyi, Jan"]
[Black "Mankovich, Yoav"]
[Result "0-1"]
[ECO "C45"]
[WhiteElo "1682"]
[BlackElo "1490"]
[Annotator "NA RC"]
[PlyCount "78"]
[EventDate "2024.11.18"]
[EventType "swiss"]
[EventCountry "ITA"]
[SourceTitle "playchess.com"]
[Source "ChessBase"]
[SourceQuality "1"]
[TimeControl "5400+30"]

1. e4 {[%emt 0:00:03]} e5 {[%emt 0:00:29]} 2. Nf3 {[%emt 0:00:06]} Nc6 {[%emt 0:00:28]} 3. d4 {[%emt 0:00:18]} exd4 {[%emt 0:01:14]} 4. Nxd4 {[%emt 0:01:59]} Bb4+ {[%emt 0:01:45]} 5. c3 {[%emt 0:01:57]} Bc5 {[%emt 0:00:13]} 6. Nxc6 {[%emt 0:01:32]} bxc6 {[%emt 0:01:33]} 7. b4 {[%emt 0:02:43]} Bb6 {[%emt 0:02:21]} 8. Bc4 {[%emt 0:01:45]} Qh4 {[%emt 0:04:23]} 9. O-O {[%emt 0:03:30]} Nf6 {[%emt 0:00:45]} 10. Nd2 {[%emt 0:14:33]} Ng4 {[%emt 0:06:24]} 11. Nf3 {[%emt 0:06:14]} Nxf2 {[%emt 0:16:32]} 12. Qe2 {[%emt 0:11:46]} Nxe4+ {[%emt 0:08:16]} 13. Be3 {[%emt 0:07:38]} Qe7 {[%emt 0:15:30]} 14. Bxb6 {[%emt 0:07:10]} axb6 {[%emt 0:05:30]} 15. Bxf7+ {[%emt 0:00:29]} Kd8 {[%emt 0:09:35]} 16. Rae1 {[%emt 0:02:21]} d5 {[%emt 0:02:45]} 17. Nd4 {[%emt 0:02:19]} Bd7 {[%emt 0:03:50]} 18. c4 {[%emt 0:03:43]} Qxb4 {[%emt 0:09:26]} 19. Nxc6+ {[%emt 0:08:38]} Bxc6 {[%emt 0:00:40]} 20. cxd5 {[%emt 0:00:13]} Bb5 {[%emt 0:03:10]} 21. Qg4 {[%emt 0:12:09]} Qd4+ {[%emt 0:01:24]} 22. Kh1 {[%emt 0:01:08]} Nf2+ {[%emt 0:00:10]} 23. Rxf2 {[%emt 0:00:18]} Qxg4 {[%emt 0:00:10]} 24. Be6 {[%emt 0:00:48]} Qd4 {[%emt 0:00:28]} 25. Rf7 {[%emt 0:00:25]} Qd2 {[%emt 0:00:32]} 26. Rg1 {[%emt 0:00:16]} Qb4 {[%emt 0:01:56]} 27. Rxg7 {[%emt 0:00:30]} Rf8 {[%emt 0:00:18]} 28. Rxh7 {[%emt 0:00:37]} Ra7 {[%emt 0:02:39]} 29. d6 {[%emt 0:01:44]} Qxd6 {[%emt 0:00:22]} 30. Bg4 {[%emt 0:00:25]} Rxa2 {[%emt 0:01:03]} 31. Rh5 {[%emt 0:00:30]} Be2 {[%emt 0:00:38]} 32. Bf5 {[%emt 0:01:29]} Bxh5 {[%emt 0:00:37]} 33. Bb1 {[%emt 0:00:12]} Rd2 {[%emt 0:00:43]} 34. Be4 {[%emt 0:00:53]} Rd1 {[%emt 0:00:14]} 35. g3 {[%emt 0:00:35]} Rxg1+ {[%emt 0:00:05]} 36. Kxg1 {[%emt 0:00:12]} Qd1+ {[%emt 0:00:09]} 37. Kg2 {[%emt 0:00:10]} Bf3+ {[%emt 0:00:14]} 38. Kf2 {[%emt 0:00:47]} Qe2+ {[%emt 0:00:08]} 39. Kg1 {[%emt 0:00:09]} Qg2# {[%emt 0:00:07]} 0-1

[Event "FIDE WCCC Open-08 2024"]
[Site "Montesilvano"]
[Date "2024.11.23"]
[Round "8.22"]
[White "Batbileg, Boldbaatar"]
[Black "Le Doan, Minh Thuc"]
[Result "1/2-1/2"]
[ECO "E11"]
[WhiteElo "1623"]
[BlackElo "1677"]
[Annotator "NA RC"]
[PlyCount "207"]
[EventDate "2024.11.18"]
[EventType "swiss"]
[EventCountry "ITA"]
[SourceTitle "playchess.com"]
[Source "ChessBase"]
[SourceQuality "1"]
[TimeControl "5400+30"]

1. d4 {[%emt 0:00:07]} Nf6 {[%emt 0:00:25]} 2. c4 {[%emt 0:00:34]} e6 {[%emt 0:01:43]} 3. Nf3 {[%emt 0:03:08]} Bb4+ {[%emt 0:00:57]} 4. Nbd2 {[%emt 0:00:17]} b6 {[%emt 0:01:27]} 5. a3 {[%emt 0:00:30]} Bxd2+ {[%emt 0:02:01]} 6. Nxd2 {[%emt 0:00:19]} Bb7 {[%emt 0:01:17]} 7. e3 {[%emt 0:00:50]} d6 {[%emt 0:01:18]} 8. Bd3 {[%emt 0:00:30]} Nbd7 {[%emt 0:02:29]} 9. O-O {[%emt 0:01:28]} O-O {[%emt 0:01:16]} 10. e4 {[%emt 0:02:14]} e5 {[%emt 0:05:08]} 11. d5 {[%emt 0:02:57]} Nc5 {[%emt 0:01:20]} 12. Bc2 {[%emt 0:00:16]} a5 {[%emt 0:00:55]} 13. b3 {[%emt 0:07:28]} Qd7 {[%emt 0:12:33]} 14. Bb2 {[%emt 0:01:51]} b5 {[%emt 0:02:42]} 15. f4 {[%emt 0:02:59]} Ng4 {[%emt 0:03:50]} 16. Qf3 {[%emt 0:12:46]} exf4 {[%emt 0:12:27]} 17. Qxf4 {[%emt 0:01:48]} f6 {[%emt 0:00:50]} 18. cxb5 {[%emt 0:10:14]} Ne5 {[%emt 0:01:56]} 19. Qg3 {[%emt 0:04:58]} Qxb5 {[%emt 0:01:07]} 20. Nf3 {[%emt 0:01:47]} Nxb3 {[%emt 0:05:43]} 21. Nxe5 {[%emt 0:00:40]} Nxa1 {[%emt 0:00:15]} 22. Bxa1 {[%emt 0:03:30]} dxe5 {[%emt 0:00:25]} 23. Bb3 {[%emt 0:00:50]} Kh8 {[%emt 0:04:03]} 24. Rc1 {[%emt 0:00:23]} Rad8 {[%emt 0:02:37]} 25. a4 {[%emt 0:08:03]} Qb6+ {[%emt 0:00:24]} 26. Kh1 {[%emt 0:00:11]} c6 {[%emt 0:03:51]} 27. Rd1 {[%emt 0:03:49]} cxd5 {[%emt 0:01:01]} 28. exd5 {[%emt 0:00:11]} Rd6 {[%emt 0:03:31]} 29. Bb2 {[%emt 0:03:59]} Bxd5 {[%emt 0:02:08]} 30. Ba3 {[%emt 0:02:35]} Qxb3 {[%emt 0:02:25]} 31. Qxb3 {[%emt 0:00:12]} Bxb3 {[%emt 0:00:06]} 32. Rxd6 {[%emt 0:00:28]} Bxa4 {[%emt 0:00:21]} 33. Ra6 {[%emt 0:00:36]} Rd8 {[%emt 0:01:08]} 34. h3 {[%emt 0:00:12]} e4 {[%emt 0:01:14]} 35. Rxa5 {[%emt 0:00:43]} Bc6 {[%emt 0:00:22]} 36. Rc5 {[%emt 0:00:21]} Ba8 {[%emt 0:00:14]} 37. Rc3 {[%emt 0:01:28]} Kg8 {[%emt 0:00:32]} 38. Bb4 {[%emt 0:00:17]} Kf7 {[%emt 0:00:41]} 39. Kh2 {[%emt 0:00:12]} f5 {[%emt 0:00:38]} 40. Kg3 {[%emt 0:00:38]} Rd3+ {[%emt 0:00:24]} 41. Rxd3 {[%emt 0:00:15]} exd3 {[%emt 0:00:10]} 42. Kf2 {[%emt 0:00:23]} h5 {[%emt 0:00:25]} 43. g3 {[%emt 0:00:08]} Ke6 {[%emt 0:00:42]} 44. Ke3 {[%emt 0:00:40]} Be4 {[%emt 0:00:26]} 45. h4 {[%emt 0:00:21]} Kd5 {[%emt 0:00:36]} 46. Bd2 {[%emt 0:03:43]} Ke6 {[%emt 0:02:29]} 47. Bc3 {[%emt 0:00:24]} Kf7 {[%emt 0:02:13]} 48. Kf4 {[%emt 0:00:17]} g6 {[%emt 0:01:09]} 49. Kg5 {[%emt 0:00:44]} Bf3 {[%emt 0:00:41]} 50. Kf4 {[%emt 0:00:12]} Bg4 {[%emt 0:00:05]} 51. Ke3 {[%emt 0:01:00]} Be2 {[%emt 0:00:17]} 52. Ba1 {[%emt 0:00:31]} Ke6 {[%emt 0:00:43]} 53. Bh8 {[%emt 0:00:27]} Kd5 {[%emt 0:00:08]} 54. Bc3 {[%emt 0:00:11]} Kc4 {[%emt 0:00:12]} 55. Ba5 {[%emt 0:00:17]} Kd5 {[%emt 0:06:25]} 56. Bc3 {[%emt 0:00:15]} Ke6 {[%emt 0:01:14]} 57. Bh8 {[%emt 0:00:21]} Kd5 {[%emt 0:03:52]} 58. Bc3 {[%emt 0:00:12]} Ke6 {[%emt 0:01:16]} 59. Bh8 {[%emt 0:00:13]} Kf7 {[%emt 0:00:04]} 60. Bc3 {[%emt 0:00:14]} Kg8 {[%emt 0:00:42]} 61. Bd2 {[%emt 0:00:20]} Kg7 {[%emt 0:02:27]} 62. Bc3+ {[%emt 0:00:24]} Kh6 {[%emt 0:00:15]} 63. Kf4 {[%emt 0:00:22]} Kh7 {[%emt 0:00:49]} 64. Kg5 {[%emt 0:00:13]} Bf3 {[%emt 0:02:15]} 65. Kf4 {[%emt 0:00:17]} Bd5 {[%emt 0:00:29]} 66. Kg5 {[%emt 0:00:43]} Bf7 {[%emt 0:00:16]} 67. Kf4 {[%emt 0:00:18]} Kg8 {[%emt 0:00:04]} 68. Ke3 {[%emt 0:00:12]} Bc4 {[%emt 0:00:07]} 69. Kd4 {[%emt 0:00:14]} Ba6 {[%emt 0:00:09]} 70. Bd2 {[%emt 0:00:13]} Kf7 {[%emt 0:00:21]} 71. Ke5 {[%emt 0:00:11]} Bb5 {[%emt 0:01:28]} 72. Bb4 {[%emt 0:00:38]} Bc6 {[%emt 0:00:35]} 73. Bc3 {[%emt 0:00:29]} Bf3 {[%emt 0:02:23]} 74. Bd2 {[%emt 0:00:09]} Ke7 {[%emt 0:00:29]} 75. Bb4+ {[%emt 0:00:08]} Kd7 {[%emt 0:00:16]} 76. Kf6 {[%emt 0:02:42]} Bg4 {[%emt 0:00:16]} 77. Ke5 {[%emt 0:00:34]} Kc6 {[%emt 0:00:32]} 78. Kd4 {[%emt 0:00:27]} Kb5 {[%emt 0:00:11]} 79. Bd2 {[%emt 0:00:44]} Be2 {[%emt 0:00:24]} 80. Bc3 {[%emt 0:00:41]} Kc6 {[%emt 0:01:08]} 81. Bd2 {[%emt 0:01:31]} Kd6 {[%emt 0:00:11]} 82. Bb4+ {[%emt 0:00:14]} Ke6 {[%emt 0:00:05]} 83. Bd2 {[%emt 0:00:14]} Kf6 {[%emt 0:00:05]} 84. Kd5 {[%emt 0:00:17]} Bf3+ {[%emt 0:00:46]} 85. Kd4 {[%emt 0:00:11]} Be4 {[%emt 0:00:13]} 86. Bg5+ {[%emt 0:00:14]} Ke6 {[%emt 0:00:14]} 87. Bd2 {[%emt 0:00:21]} Kd6 {[%emt 0:00:35]} 88. Bg5 {[%emt 0:00:05]} Kc6 {[%emt 0:00:13]} 89. Bf4 {[%emt 0:00:27]} Kb5 {[%emt 0:00:21]} 90. Bd2 {[%emt 0:00:17]} Ka4 {[%emt 0:00:07]} 91. Bc3 {[%emt 0:00:40]} Kb3 {[%emt 0:00:10]} 92. Bd2 {[%emt 0:00:28]} Kc2 {[%emt 0:00:06]} 93. Ke3 {[%emt 0:00:11]} Bf3 {[%emt 0:02:22]} 94. Ba5 {[%emt 0:00:10]} Be2 {[%emt 0:00:50]} 95. Bd2 {[%emt 0:00:12]} Kb3 {[%emt 0:00:08]} 96. Ba5 {[%emt 0:01:02]} Kc4 {[%emt 0:00:19]} 97. Bd2 {[%emt 0:00:14]} Kd5 {[%emt 0:00:11]} 98. Kf4 {[%emt 0:00:16]} Kd4 {[%emt 0:00:26]} 99. Be1 {[%emt 0:00:20]} d2 {[%emt 0:00:36]} 100. Bxd2 {[%emt 0:00:12]} Kd3 {[%emt 0:00:04]} 101. Bb4 {[%emt 0:00:24]} Bg4 {[%emt 0:00:08]} 102. Kg5 {[%emt 0:00:13]} Ke2 {[%emt 0:00:07]} 103. Kxg6 {[%emt 0:00:22]} Kf2 {[%emt 0:00:03]} 104. Bd6 {[%emt 0:00:12]} 1/2-1/2